Cogmind - Beta 13 @@@ ROGUE MODE // 2024.07.03 @ 21:06:58 Player: Selene Result: Destroyed by S-27 Virus with Autogun Performance ------------- Evolutions (5) 2500 Regions Visited (16) 3200 Robots Destroyed (169) 845 Value Destroyed (5400) 5400 Prototype IDs (61) 1220 Alien Tech Used (0) 0 Bonus (1195) 1195 TOTAL SCORE: 14360 Bonus ------- High Alert Combat Kills 153 Follower Combat Kills 442 Aligned with FarCom 300 Met Data Miner 300 Cogmind --------- Core Integrity 0/1000 Matter 211/300 Energy 100/100 System Corruption 0% Temperature Cool (0) Movement Core (50) Location -5/Upper Caves Parts ------- > --- POWER (2) -------- (None) > --- PROPULSION (6) --- (None) > --- UTILITY (6) ------ (None) > --- WEAPON (3) ------- (None) > --- INVENTORY (5) ---- Hypervelocity Coil Gun Peak State ------------ > --- POWER ------------ Light Deuterium Engine Fusion Compressor > --- PROPULSION ------- Medium Treads Medium Treads Improved Medium Treads Improved Medium Treads Heavy Treads > --- UTILITY ---------- Huge Storage Unit Experimental Targeting Computer Improved Heavy Armor Plating Point Defense System Mini Drone Bay > --- WEAPON ----------- Enhanced Gauss Cannon Enhanced Gauss Cannon Ionic Axe > --- INVENTORY -------- Cold Fusion Reactor Medium Treads Medium Treads Advanced Cooling System High-capacity Storage Unit High-capacity Matter Pod Recoil Nullifier Matter Filter Weapon Cycler Improved Transmission Jammer Advanced ECM Suite Focal Shield Thermal Shield EM Disruption Field Advanced Shield Generator Improved Dynamic Insulation System System Restoration Module Long-range Tractor Beam Plasma Rifle Plasma Rifle Hypervelocity Coil Gun Magnetic Acceleration Cannon Mass Driver Missile Launcher Heavy Missile Launcher [Rating: 97] Favorites ----------- Power Cold Fusion Reactor Engine Improved Ion Engine Power Core Fusion Compressor Reactor Cold Fusion Reactor Propulsion Light Treads Treads Light Treads Leg Aluminum Leg Wheel Armored Wheel Utility Huge Storage Unit Device Structural Scanner Storage Huge Storage Unit Processor Experimental Targeting Computer Hackware Hacking Suite Protection Hardened Light Armor Plating Weapon Improved Light Cannon Energy Gun Improved Medium Laser Energy Cannon Heavy Phase Cannon Ballistic Gun Heavy Machine Gun Ballistic Cannon Improved Light Cannon Launcher Missile Launcher Impact Weapon Power Maul Slashing Weapon Scythe Special Melee Weapon Improved Datajack Build | -11 -10 -10 -9 -9 -9 -8 -8 -7 -6 -6 -6 -6 -5 -5 -5 -5 ------- Run | Yrd Mat Min Mat Min Exi Min Mat Fac Fac Low Low Dat Pro Fac Upp Upp Slots Evolved 10 | . . . 2 . . . 2 2 2 . . . . 2 . . Power 1 | . . . . . . . . . . . . . . 1 . . Propulsion 4 | . . . 1 . . . 1 . 1 . . . . 1 . . Utility 4 | . . . 1 . . . . 2 1 . . . . . . . Weapon 1 | . . . . . . . 1 . . . . . . . . . Parts Attached 291 | 8 17 3 56 3 3 2 22 24 38 6 20 2 18 42 13 14 Power 24 | 1 2 1 6 . . . 3 1 3 . 1 . . 5 . 1 Engine 18 | 1 2 1 6 . . . 3 1 1 . . . . 3 . . Core 2 | . . . . . . . . . 1 . . . . 1 . . Reactor 4 | . . . . . . . . . 1 . 1 . . 1 . 1 Propulsion 72 | 2 6 . 13 2 1 . 10 5 8 . 8 . 2 10 . 5 Treads 38 | . 2 . 8 2 1 . 7 1 4 . 1 . 1 7 . 4 Leg 7 | . 4 . 1 . . . . . . . 2 . . . . . Wheel 27 | 2 . . 4 . . . 3 4 4 . 5 . 1 3 . 1 Hover . | . . . . . . . . . . . . . . . . . Flight . | . . . . . . . . . . . . . . . . . Utility 109 | 2 3 1 11 1 1 . 5 10 18 6 8 . 9 18 11 5 Device 78 | 1 2 . 3 1 . . 3 6 13 4 8 . 6 16 11 4 Storage 6 | 1 1 1 2 . 1 . . . . . . . . . . . Processor 8 | . . . 1 . . . . 1 3 1 . . . 1 . 1 Hackware 1 | . . . . . . . . 1 . . . . . . . . Protection 16 | . . . 5 . . . 2 2 2 1 . . 3 1 . . Artifact . | . . . . . . . . . . . . . . . . . Weapon 86 | 3 6 1 26 . 1 2 4 8 9 . 3 2 7 9 2 3 Energy Gun 14 | 1 . 1 7 . . . . . . . . . 1 3 . 1 Energy Cannon 2 | . . . . . . . . . . . . . . 2 . . Ballistic Gun 22 | 2 5 . 2 . . 1 . 1 6 . 1 1 2 . . 1 Ballistic Cannon 25 | . 1 . 9 . . 1 2 5 . . 1 1 1 3 . 1 Launcher 6 | . . . 1 . . . . . . . 1 . 2 . 2 . Special Weapon . | . . . . . . . . . . . . . . . . . Impact Weapon 1 | . . . . . . . . 1 . . . . . . . . Slashing Weapon 15 | . . . 7 . . . 2 1 3 . . . 1 1 . . Piercing Weapon . | . . . . . . . . . . . . . . . . . Special Melee Weapon 1 | . . . . . 1 . . . . . . . . . . . Unidentified Prototypes 3 | . . . . 1 . . . . . . . . 1 1 . . Parts Lost 36 | . 2 . 3 . . . . 1 1 1 6 . 6 3 . 13 Power 5 | . . . 1 . . . . . 1 . 1 . . . . 2 Propulsion 17 | . 1 . 1 . . . . . . . 2 . 2 3 . 8 Utility 8 | . 1 . . . . . . . . 1 3 . 2 . . 1 Weapon 6 | . . . 1 . . . . 1 . . . . 2 . . 2 Highest Loss Streak 10 | . 1 . 2 . . . . 1 1 1 5 . 4 2 . 10 To Critical Strikes . | . . . . . . . . . . . . . . . . . Average Slot Usage (%) 91 | . 98 100 98 100 100 100 99 95 79 81 91 74 85 88 88 33 Engine 7 | . 14 14 10 11 11 11 8 7 4 . . . . 2 5 1 Reactor 1 | . . . . . . . . . . 6 5 6 6 2 . . Treads 16 | . 11 28 21 22 26 33 24 10 4 6 6 6 7 24 29 9 Leg 1 | . 15 . . . . . . . . . . . . . . . Wheel 10 | . . . 10 11 6 . 11 15 14 13 18 20 18 4 . . Device 10 | . 12 14 9 10 11 11 9 10 10 7 18 20 6 8 5 5 Storage 8 | . 14 14 11 11 11 11 9 7 6 6 6 6 6 5 5 1 Processor 4 | . . . . . . . . 3 6 13 13 13 13 7 11 5 Protection 6 | . . . 11 11 11 11 8 6 6 6 . . 5 4 5 . Energy Gun 2 | . 2 . 8 . . . . . . . . . . 3 . . Ballistic Gun 5 | . 25 27 . . . 3 . . 9 13 7 . 11 . . . Ballistic Cannon 8 | . . . 11 22 12 14 18 15 4 . 5 . 5 3 3 . Slashing Weapon 3 | . . . 1 . . . 8 3 4 6 5 . 1 5 5 1 Naked Turns 74 | . . . . . . . . . . . . . . . . 74 Heaviest Build 137 | 12 29 51 64 65 102 105 110 129 134 120 122 108 130 137 130 125 Greatest Support 186 | 26 40 40 40 40 60 60 60 65 68 56 56 52 52 186 186 186 Greatest Overweight (x) 10 | . 2 1 6 6 6 1 10 3 5 2 9 2 5 8 . 1 Average Overweight (x) 2 | . . . 5 5 4 1 7 2 1 2 1 1 2 1 . . Largest Inventory Capacity 25 | 8 15 20 25 20 25 25 25 25 25 25 25 25 25 25 25 25 Average Capacity 22 | 7 14 18 20 20 21 25 25 25 25 25 25 25 25 25 25 10 Most Carried 25 | 8 15 20 20 20 24 25 25 25 25 25 25 25 25 25 25 25 Average Carried 21 | 5 13 17 19 20 21 24 24 24 24 24 20 25 24 24 24 8 Final Capacity 25 | 8 15 20 20 20 25 25 25 25 25 25 25 25 25 25 25 5 Final Carried 25 | 8 15 20 20 20 24 25 25 25 25 23 24 25 23 25 24 1 Class Distribution -------------------- 67% | Mutant 26% | Scavenger-Mutant 3% | Skirmisher Dominant Class ---------------- Mutant | -10/Materials Mutant | -10/Mines Scavenger-Mutant | -9/Materials Mutant | -9/Mines Mutant | -9/Exiles Mutant | -8/Mines Mutant | -8/Materials Mutant | -7/Factory Mutant | -6/Factory Mutant | -6/Lower Caves Mutant | -6/Lower Caves Mutant | -6/Data Miner Mutant | -5/Proximity Caves Mutant | -5/Factory Mutant | -5/Upper Caves Mutant | -5/Upper Caves Resources | -11 -10 -10 -9 -9 -9 -8 -8 -7 -6 -6 -6 -6 -5 -5 -5 -5 ----------- Run | Yrd Mat Min Mat Min Exi Min Mat Fac Fac Low Low Dat Pro Fac Upp Upp Matter Collected 7146 | 284 566 57 810 149 . 106 654 539 1413 225 669 . 239 723 402 310 Remotely 281 | . . . . . . . . . . . . . . 73 . 208 Salvage Created 6512 | 74 558 125 1456 . . 187 342 615 1303 . 644 . 243 744 221 . Parts 351 | 9 51 8 86 . . 11 16 29 78 . 14 . 9 34 6 . Haulers Intercepted 13 | . 2 . 4 . . . 2 2 2 . . . . 1 . . Recyclers Shooed 7 | . . . . . . . . . 6 . . . . 1 . . Parts Field Recycled . | . . . . . . . . . . . . . . . . . Retrieved Matter . | . . . . . . . . . . . . . . . . . Parts Self-Destructed 16 | . . . . . . . . . . . 4 . 6 . 6 . Prevented . | . . . . . . . . . . . . . . . . . Kills | -11 -10 -10 -9 -9 -9 -8 -8 -7 -6 -6 -6 -6 -5 -5 -5 -5 ------- Run | Yrd Mat Min Mat Min Exi Min Mat Fac Fac Low Low Dat Pro Fac Upp Upp Combat Hostiles Destroyed 114 | . 12 3 27 1 . 3 7 9 15 . 9 . 11 5 12 . Melee 3 | . . . . . . . . . 2 . . . 1 . . . Guns 44 | . 12 3 17 . . . . . 9 . 2 . 1 . . . Cannons 41 | . . . 6 1 . 3 7 9 4 . 4 . 1 1 5 . AOE 26 | . . . 4 . . . . . . . 3 . 8 4 7 . Classes Destroyed 16 | 1 7 . 3 . . 1 . 2 1 . . . . . 1 . Builder 8 | . 5 . . . . . . 1 1 . . . . 1 . . Tunneler 5 | 3 . . 1 . . . . . 1 . . . . . . . Hauler 13 | . 2 . 4 . . . 2 2 2 . . . . 1 . . Recycler 8 | . . . 2 . . 1 . 1 2 . . . . 2 . . Mechanic 8 | . 1 . 2 . . . 1 1 2 . . . . 1 . . Operator 3 | . 1 . 1 . . . . . 1 . . . . . . . Watcher 17 | . 2 . 5 . . . 3 3 1 . . . . 3 . . Swarmer 27 | . 9 . 8 . . . . . 3 . . . 7 . . . Grunt 42 | . 3 3 11 1 . 2 4 5 3 . 2 . 3 . 5 . Brawler 2 | . . . . . . 1 1 . . . . . . . . . Duelist 5 | . . . 1 . . . . 1 2 . 1 . . . . . Sentry 13 | . . . 7 . . . 2 . 1 . 1 . 1 1 . . Hunter 3 | . . . . . . . . . 2 . . . . 1 . . Programmer 10 | . . . . . . . . 2 4 . 1 . . 3 . . Heavy 1 | . . . . . . . . 1 . . . . . . . . Assembled 7 | . . . . . . . . . . . . . . . 7 . Thug 4 | . . . . . . . . . . . 4 . . . . . Best Kill Streak 9 | 2 6 2 4 1 . 4 3 3 5 . 4 . 9 4 7 . Combat Bots Only 9 | . 5 2 4 1 . 3 2 2 3 . 4 . 9 3 7 . Max Kills in Single Turn 4 | 1 2 1 3 1 . 2 1 2 2 . 2 . 3 4 3 . Gunslinging 1 | . . . 1 . . . . . . . . . . . . . Exploded 3 | . . . 3 . . . . . . . 2 . 3 3 3 . Melee 1 | . . . . . . . . . 1 . . . 1 . . . Uniques/NPCs Destroyed . | . . . . . . . . . . . . . . . . . Combat | -11 -10 -10 -9 -9 -9 -8 -8 -7 -6 -6 -6 -6 -5 -5 -5 -5 -------- Run | Yrd Mat Min Mat Min Exi Min Mat Fac Fac Low Low Dat Pro Fac Upp Upp Hostile Shots Fired 1082 | . 96 9 141 5 . 2 48 35 146 91 92 . 93 36 80 208 Missed 296 | . 24 2 33 1 . 1 20 8 40 25 24 . 31 7 25 55 Damage Taken 12787 | . 621 105 1440 42 . 18 431 718 1444 836 1098 . 1308 816 843 3067 Core 1849 | . 139 18 242 10 . . 15 96 158 61 80 . 30 67 94 839 Absorbed by Shields 294 | . . . . . . . . . 114 138 18 . . . 24 . Redirected to Shielding 109 | . . . . . . . . . . 55 54 . . . . . Ignored by Resistances 509 | . . . . . . . . . 47 84 93 . 36 10 152 87 Regen/Repaired (Parts) 958 | . . . 169 . . . . 132 . . . . . 657 . . Core Remaining (%) 69 | 100 . 37 . . . 37 97 86 . . . . 61 . . . Volleys Fired 443 | 10 65 9 114 6 . 7 35 30 73 10 18 . 10 18 19 19 Largest 3 | 2 2 2 2 2 . 2 3 3 3 2 3 . 2 2 2 2 Hottest 180 | 40 70 40 112 78 . 78 122 140 140 60 113 . 83 180 114 75 Shots Fired 868 | 20 130 18 226 12 . 14 76 63 149 19 37 . 12 36 34 22 Gun 490 | 20 130 18 154 . . . . . 100 19 19 . 3 12 . 15 Cannon 356 | . . . 70 12 . 14 76 63 49 . 16 . 5 24 26 1 Launcher 22 | . . . 2 . . . . . . . 2 . 4 . 8 6 Special . | . . . . . . . . . . . . . . . . . Kinetic 650 | 20 107 18 75 12 . 14 76 63 149 19 35 . 8 16 26 12 Thermal 164 | . 23 . 129 . . . . . . . . . . 8 . 4 Explosive 22 | . . . 2 . . . . . . . 2 . 4 . 8 6 Electromagnetic 32 | . . . 20 . . . . . . . . . . 12 . . Robot Hit Streak 17 | 9 15 6 17 5 . 7 13 7 14 4 8 . 6 10 10 10 Robot Miss Streak 10 | 3 3 2 10 1 . 1 3 5 7 2 2 . 1 2 2 3 Penetration Max 1 | . . . . . . . . . 1 1 1 . . . 1 . Secondary Targets 5 | . 3 1 1 . . . . . . . . . . . . . Max Gunslinging Chain 1 | . 1 1 1 . . . . . . . . . . . . . Shots Hit Robots 592 | 13 79 13 134 9 8 10 62 36 97 13 33 . 13 30 22 20 Core Hits 283 | 7 31 6 58 1 . 6 17 24 51 1 19 . 21 14 25 2 Critical Kills 3 | . 1 . . . . . . . 1 . 1 . . . . . Critical Parts Destroyed 7 | . . . . . . . . 1 1 1 1 . . . . 3 Critical Strikes 40 | . 2 . 10 1 . 1 3 2 7 1 2 . 1 6 1 3 Burn 7 | . 1 . 6 . . . . . . . . . . . . . Destroy 9 | . 1 . . . . . . . 2 1 2 . . . . 3 Blast 20 | . . . 4 1 . 1 3 1 3 . . . . 6 1 . Smash 1 | . . . . . . . . 1 . . . . . . . . Sever 3 | . . . . . . . . . 2 . . . 1 . . . Melee Attacks 167 | . . . 19 . 8 1 31 12 47 . 8 . 4 30 . 7 Impact 6 | . . . . . . . . 6 . . . . . . . . Slashing 152 | . . . 19 . . . 31 6 47 . 8 . 4 30 . 7 Piercing . | . . . . . . . . . . . . . . . . . Sneak Attacks 29 | . . . 1 . 7 1 4 3 7 . . . . 6 . . Combat Hostiles . | . . . . . . . . . . . . . . . . . Follow-up Attacks . | . . . . . . . . . . . . . . . . . Damage Inflicted 16481 | 123 846 145 2884 203 . 219 1532 1190 2959 237 1363 . 1089 1817 1428 446 Guns 5133 | 123 846 145 1702 . . . . . 1414 237 364 . 66 176 . 60 Cannons 5498 | . . . 687 203 . 219 1181 926 535 . 313 . 95 544 759 36 Explosions 3061 | . . . 286 . . . . . 165 . 355 . 803 637 669 146 Melee 2789 | . . . 209 . . . 351 264 845 . 331 . 125 460 . 204 Ramming . | . . . . . . . . . . . . . . . . . Kinetic 8484 | 123 654 145 734 203 . 219 1181 926 1949 237 677 . 161 441 759 75 Thermal 2297 | . 192 . 1442 . . . . . . . . . . 642 . 21 Explosive 2357 | . . . 286 . . . . . . . 355 . 803 98 669 146 Electromagnetic 554 | . . . 213 . . . . . 165 . . . . 176 . . Impact 180 | . . . . . . . . 180 . . . . . . . . Slashing 2609 | . . . 209 . . . 351 84 845 . 331 . 125 460 . 204 Piercing . | . . . . . . . . . . . . . . . . . Highest Corruption 11 | . . . . . . . 1 1 6 6 6 6 11 1 . . Average Corruption 4 | . . . . . . . 1 1 5 6 6 6 11 1 . . Corruption Purged 1 | . . . . . . . . . . . . . . 1 . . Corruption Blocked . | . . . . . . . . . . . . . . . . . Effects 143 | . . . . . . . 10 . 65 9 17 3 36 3 . . Message Errors 32 | . . . . . . . 3 . 14 4 6 1 3 1 . . Matter Fused 33 | . . . . . . . 2 . 13 2 4 1 10 1 . . Heat Flow Errors 15 | . . . . . . . 2 . 6 . 2 . 5 . . . Energy Discharges 22 | . . . . . . . . . 5 1 3 1 11 1 . . Parts Rejected 1 | . . . . . . . . . 1 . . . . . . . Parts Fused 2 | . . . . . . . . . 1 1 . . . . . . Data Loss (minor) 22 | . . . . . . . 3 . 13 . 1 . 5 . . . Data Loss (major) 8 | . . . . . . . . . 6 . . . 2 . . . Misfires 4 | . . . . . . . . . 3 . 1 . . . . . Weapon Failures 4 | . . . . . . . . . 3 1 . . . . . . Overload Shots . | . . . . . . . . . . . . . . . . . Overflow Damage 899 | . . . 63 7 . . 69 169 136 . 69 . 6 347 33 . Projectiles 134 | . . . 7 7 . . 8 5 14 . . . . 73 20 . Explosions 241 | . . . 11 . . . . . . . . . 6 211 13 . Melee 524 | . . . 45 . . . 61 164 122 . 69 . . 63 . . Knockbacks 56 | . . . 8 3 . 1 12 4 7 . 2 . . 7 12 . Impact . | . . . . . . . . . . . . . . . . . Kinetic 54 | . . . 8 3 . 1 12 4 7 . 2 . . 7 10 . Secondary 2 | . . . . . . . . . . . . . . . 2 . Self-Inflicted Damage 335 | . . . . . . . . . . . . . 144 191 . . Shots 7 | . . . . . . . . . . . . . 4 3 . . Rammed . | . . . . . . . . . . . . . . . . . Targets Rammed . | . . . . . . . . . . . . . . . . . Kicked . | . . . . . . . . . . . . . . . . . Crushed . | . . . . . . . . . . . . . . . . . Highest Temperature 415 | . 160 36 189 132 . 135 415 261 319 . 257 . 262 345 264 39 Average Temperature 73 | . 62 17 41 69 . 70 113 62 71 . 50 . 85 92 148 12 Received Heat Transfer 3053 | . 66 75 564 24 . 9 243 153 200 . 282 . 396 . 402 639 Effects 4 | . . . . . . . . . . . . . 1 . 3 . Energy Bleed 1 | . . . . . . . . . . . . . 1 . . . Interference 3 | . . . . . . . . . . . . . . . 3 . Siege Activations . | . . . . . . . . . . . . . . . . . Robots Corrupted . | . . . . . . . . . . . . . . . . . Combat Hostiles . | . . . . . . . . . . . . . . . . . Parts Fried 6 | . . . . . . . . 4 . . . . . 2 . . Impact Corruptions 2 | . . . . . . . . 2 . . . . . . . . Robots Melted . | . . . . . . . . . . . . . . . . . Combat Hostiles . | . . . . . . . . . . . . . . . . . Parts Melted 10 | . 1 . 9 . . . . . . . . . . . . . Heat Transferred 4618 | . 629 . 3478 . . . . . . . . . . 461 . 50 Parts Sabotaged . | . . . . . . . . . . . . . . . . . Parts Stolen . | . . . . . . . . . . . . . . . . . Parts Stripped . | . . . . . . . . . . . . . . . . . Power Chain Reactions 2 | . . . . . . . . . 1 . . . . 1 . . Alert | -11 -10 -10 -9 -9 -9 -8 -8 -7 -6 -6 -6 -6 -5 -5 -5 -5 ------- Run | Yrd Mat Min Mat Min Exi Min Mat Fac Fac Low Low Dat Pro Fac Upp Upp Peak Influence 726 | 15 190 82 472 420 . 202 112 304 726 . . . . 320 . . Initial 183 | . 9 3 31 183 . . 78 24 87 . . . . 116 . . Average 208 | 4 53 27 335 282 . 106 57 99 403 . . . . 175 . . Maximum Alert Level 3 | . . . 2 2 . 1 . 1 3 . . . . 1 . . Low Security (%) 57 | 100 100 100 19 13 . 72 100 87 11 . . . . 74 . . Level 1 21 | . . . 31 83 . 27 . 12 31 . . . . 25 . . Level 2 20 | . . . 49 3 . . . . 55 . . . . . . . Level 3 . | . . . . . . . . . 1 . . . . . . . Level 4 . | . . . . . . . . . . . . . . . . . Level 5 . | . . . . . . . . . . . . . . . . . High Security . | . . . . . . . . . . . . . . . . . Max Security . | . . . . . . . . . . . . . . . . . Squads Dispatched 28 | . 2 . 2 . . . 1 13 6 . . . . 4 . . Investigation 7 | . 1 . . . . . 1 3 1 . . . . 1 . . Extermination 9 | . . . . . . . . 2 4 . . . . 3 . . Reinforcement 9 | . 1 . 2 . . . . 5 1 . . . . . . . Assault . | . . . . . . . . . . . . . . . . . Garrison 3 | . . . . . . . . 3 . . . . . . . . Intercept . | . . . . . . . . . . . . . . . . . Searches Triggered . | . . . . . . . . . . . . . . . . . Construction Impeded . | . . . . . . . . . . . . . . . . . Haulers Reinforced . | . . . . . . . . . . . . . . . . . Active Scanning Responses . | . . . . . . . . . . . . . . . . . Cargo Convoy Interrupts 1 | . . . . . . . . 1 . . . . . . . . Stealth | -11 -10 -10 -9 -9 -9 -8 -8 -7 -6 -6 -6 -6 -5 -5 -5 -5 --------- Run | Yrd Mat Min Mat Min Exi Min Mat Fac Fac Low Low Dat Pro Fac Upp Upp Distress Signals 8 | . . . 5 . . . 1 1 . . . . . 1 . . Communications Jammed . | . . . . . . . . . . . . . . . . . Distress Signals . | . . . . . . . . . . . . . . . . . Times Spotted 222 | . 22 4 41 9 . 6 15 19 31 2 9 . 13 23 11 17 Peak Tracking Total 12 | . 5 2 6 3 . 4 3 4 4 2 4 . 12 4 5 7 Tactical Retreats 27 | . . . 2 5 . 1 1 4 4 . . . 1 3 . 6 Traps | -11 -10 -10 -9 -9 -9 -8 -8 -7 -6 -6 -6 -6 -5 -5 -5 -5 ------- Run | Yrd Mat Min Mat Min Exi Min Mat Fac Fac Low Low Dat Pro Fac Upp Upp Traps Triggered 15 | . 1 . 2 . . . 3 5 2 . . . . 2 . . Indirectly . | . . . . . . . . . . . . . . . . . Trap Hack Attempts . | . . . . . . . . . . . . . . . . . Triggered . | . . . . . . . . . . . . . . . . . Disarmed . | . . . . . . . . . . . . . . . . . Reprogrammed . | . . . . . . . . . . . . . . . . . Reused . | . . . . . . . . . . . . . . . . . Traps Extracted . | . . . . . . . . . . . . . . . . . Installed . | . . . . . . . . . . . . . . . . . Triggered 1 | . . . . . . . . 1 . . . . . . . . Machines | -11 -10 -10 -9 -9 -9 -8 -8 -7 -6 -6 -6 -6 -5 -5 -5 -5 ---------- Run | Yrd Mat Min Mat Min Exi Min Mat Fac Fac Low Low Dat Pro Fac Upp Upp Machines Disabled 31 | . . . 4 . . . 1 1 15 . . . 2 8 . . Max in Single Turn 6 | . . . 1 . . . 1 1 4 . . . 2 6 . . Garrison Access 2 | . . . . . . . . 1 1 . . . . . . . Machines Repaired . | . . . . . . . . . . . . . . . . . Machines Dismantled . | . . . . . . . . . . . . . . . . . Machines Sabotaged . | . . . . . . . . . . . . . . . . . Overloaded Fab Kills . | . . . . . . . . . . . . . . . . . Hacking | -11 -10 -10 -9 -9 -9 -8 -8 -7 -6 -6 -6 -6 -5 -5 -5 -5 --------- Run | Yrd Mat Min Mat Min Exi Min Mat Fac Fac Low Low Dat Pro Fac Upp Upp Machines Accessed 77 | . 9 . 14 1 3 . 8 11 10 . . 4 . 15 2 . Terminals 39 | . 7 . 10 . . . 4 5 6 . . . . 7 . . Fabricators 3 | . . . . . . . . 2 . . . . . 1 . . Repair Stations 7 | . . . 1 . . . . 2 1 . . . . 3 . . Recycling Units 10 | . 2 . 2 . . . 1 1 2 . . . . 2 . . Scanalyzers 3 | . . . 1 . . . 2 . . . . . . . . . Garrison Access 5 | . . . . . . . 1 1 1 . . . . 2 . . Total Hacks 260 | . 24 . 55 1 33 . 23 26 29 . . 28 . 39 2 . Successful 163 | . 13 . 32 1 33 . 12 12 12 . . 28 . 18 2 . Failed 95 | . 10 . 22 . . . 11 14 17 . . . . 21 . . Catastrophic 15 | . 1 . 3 . . . . 1 4 . . . . 6 . . Database Lockouts 2 | . 1 . 1 . . . . . . . . . . . . . Manual 83 | . 14 . 26 . 1 . 11 9 10 . . . . 12 . . Terminals 117 | . 19 . 40 . . . 9 12 21 . . . . 16 . . Fabricators 5 | . . . . . . . . 3 . . . . . 2 . . Repair Stations 20 | . . . 4 . . . . 6 3 . . . . 7 . . Recycling Units 30 | . 5 . 5 . . . 4 3 4 . . . . 9 . . Scanalyzers 13 | . . . 6 . . . 7 . . . . . . . . . Garrison Access 11 | . . . . . . . 3 2 1 . . . . 5 . . Terminal Hacks 107 | . 10 . 19 1 33 . 1 . 8 . . 28 . 5 2 . Record 43 | . . . . . 32 . . . . . . 11 . . . . Part Schematic 9 | . . . . . . . . . . . . 9 . . . . Robot Schematic 5 | . . . . . . . . . . . . 5 . . . . Robot Analysis 5 | . 1 . 2 . . . . . 2 . . . . . . . Prototype ID Bank 9 | . 2 . 3 . . . . . 1 . . 3 . . . . Open Door 3 | . . . . 1 . . . . . . . . . . 2 . Branch Access Points 2 | . . . . . . . . . 1 . . . . 1 . . Emergency Access Points 4 | . 1 . 3 . . . . . . . . . . . . . Terminal Index 3 | . 1 . 1 . . . 1 . . . . . . . . . Locate Traps 11 | . 2 . 4 . . . . . 2 . . . . 3 . . Recall Reinforcements 1 | . . . 1 . . . . . . . . . . . . . Hauler Manifests 2 | . 1 . 1 . . . . . . . . . . . . . Registered Prototypes 1 | . 1 . . . . . . . . . . . . . . . Zone Layout 8 | . 1 . 4 . . . . . 2 . . . . 1 . . Derelict Proto ID Bank 1 | . . . . . 1 . . . . . . . . . . . Fabricator Hacks 5 | . . . . . . . . 3 . . . . . 2 . . Network Status 3 | . . . . . . . . 2 . . . . . 1 . . Load Schematic 1 | . . . . . . . . . . . . . . 1 . . Build 1 | . . . . . . . . 1 . . . . . . . . Repair Station Hacks 13 | . . . 4 . . . . 4 1 . . . . 4 . . Scan Component 7 | . . . 2 . . . . 2 1 . . . . 2 . . Repair 6 | . . . 2 . . . . 2 . . . . . 2 . . Recycling Unit Hacks 4 | . . . 1 . . . 1 . . . . . . 2 . . Retrieve Matter 1 | . . . . . . . . . . . . . . 1 . . Retrieve Components 3 | . . . 1 . . . 1 . . . . . . 1 . . Scanalyzer 12 | . . . 5 . . . 7 . . . . . . . . . Insert Component 5 | . . . 2 . . . 3 . . . . . . . . . Analyze 7 | . . . 3 . . . 4 . . . . . . . . . Garrison Access Hacks 3 | . . . . . . . 1 1 1 . . . . . . . Seal Access 2 | . . . . . . . . 1 1 . . . . . . . Coupler Status 1 | . . . . . . . 1 . . . . . . . . . Unauthorized Hacks 19 | . 3 . 3 . . . 2 4 2 . . . . 5 . . Terminals 11 | . 1 . 2 . . . 1 3 1 . . . . 3 . . Assimilate 3 | . . . 1 . . . . 2 . . . . . . . . Botnet 8 | . 1 . 1 . . . 1 1 1 . . . . 3 . . Fabricators . | . . . . . . . . . . . . . . . . . Repair Stations . | . . . . . . . . . . . . . . . . . Recycling Units 8 | . 2 . 1 . . . 1 1 1 . . . . 2 . . Reject 8 | . 2 . 1 . . . 1 1 1 . . . . 2 . . Scanalyzers . | . . . . . . . . . . . . . . . . . Garrison Access . | . . . . . . . . . . . . . . . . . Data Cores Recovered 1 | . 1 . . . . . . . . . . . . . . . Used . | . . . . . . . . . . . . . . . . . Hacking Detections 61 | . 9 . 14 . . . 6 9 9 . . . . 14 . . Full Trace Events 6 | . . . 1 . . . 1 2 1 . . . . 1 . . Feedback Events . | . . . . . . . . . . . . . . . . . Feedback Blocked . | . . . . . . . . . . . . . . . . . Robot Schematics Acquired 5 | . . . . . . . . . . . . 5 . . . . Robots Built 4 | . . . . . . . . 4 . . . . . . . . Authchips . | . . . . . . . . . . . . . . . . . Time 67 | . . . . . . . . 67 . . . . . . . . Total Robot Build Rating 16 | . . . . . . . . 16 . . . . . . . . Part Schematics Acquired 14 | . . . 2 . . . 3 . . . . 9 . . . . Parts Built . | . . . . . . . . . . . . . . . . . Authchips . | . . . . . . . . . . . . . . . . . Time . | . . . . . . . . . . . . . . . . . Total Part Build Rating . | . . . . . . . . . . . . . . . . . Parts Repaired 6 | . . . 2 . . . . 2 . . . . . 2 . . Time 184 | . . . 64 . . . . 70 . . . . . 50 . . Parts Recycled . | . . . . . . . . . . . . . . . . . Recycled Matter . | . . . . . . . . . . . . . . . . . Retrieved Matter . | . . . . . . . . . . . . . . . . . Retrieved Components 12 | . . . 9 . . . 2 . . . . . . 1 . . Parts Scanalyzed 5 | . . . 2 . . . 3 . . . . . . . . . Part Schematics Acquired 5 | . . . 2 . . . 3 . . . . . . . . . Parts Damaged . | . . . . . . . . . . . . . . . . . Bothacking | -11 -10 -10 -9 -9 -9 -8 -8 -7 -6 -6 -6 -6 -5 -5 -5 -5 ------------ Run | Yrd Mat Min Mat Min Exi Min Mat Fac Fac Low Low Dat Pro Fac Upp Upp Used RIF Installer . | . . . . . . . . . . . . . . . . . Robots Hacked 6 | . . . . . 5 1 . . . . . . . . . . Non-combat 4 | . . . . . 3 1 . . . . . . . . . . Combat 2 | . . . . . 2 . . . . . . . . . . . Robot Hacks Applied 7 | . . . . . 6 1 . . . . . . . . . . parse_system 7 | . . . . . 6 1 . . . . . . . . . . Relay Couplers Released . | . . . . . . . . . . . . . . . . . Fabnet Peak Effective % . | . . . . . . . . . . . . . . . . . Robots Rewired . | . . . . . . . . . . . . . . . . . Allies Hacked . | . . . . . . . . . . . . . . . . . Hacks Repelled . | . . . . . . . . . . . . . . . . . Allies | -11 -10 -10 -9 -9 -9 -8 -8 -7 -6 -6 -6 -6 -5 -5 -5 -5 -------- Run | Yrd Mat Min Mat Min Exi Min Mat Fac Fac Low Low Dat Pro Fac Upp Upp Total Allies 7 | . . 3 . . . . . 4 . . . . . . . . Largest Group 4 | . . 3 . . . . . 4 . . . . . . . . Highest-Rated Group 48 | . . 40 . . . . . 48 . . . . . . . . Highest-Rated Ally 16 | . . 16 . . . . . 12 . . . . . . . . Total Orders 32 | . . . . 8 . 11 . 6 1 . 1 . . 1 4 . ROAM 1 | . . . . . . . . 1 . . . . . . . . EXPLORE 21 | . . . . 7 . 6 . 3 1 . 1 . . 1 2 . RETURN 10 | . . . . 1 . 5 . 2 . . . . . . 2 . Ally Attacks 220 | . . 14 . 63 . 49 . 72 22 . . . . . . . Total Damage 2359 | . . 172 . 220 . 170 . 672 1125 . . . . . . . Kills 29 | . . 1 . 7 . 4 . 7 10 . . . . . . . Allies Corrupted 1 | . . . . . . 1 . . . . . . . . . . Allies Melted . | . . . . . . . . . . . . . . . . . Turrets Deployed 3 | . . . . . . . . 1 2 . . . . . . . Intel | -11 -10 -10 -9 -9 -9 -8 -8 -7 -6 -6 -6 -6 -5 -5 -5 -5 ------- Run | Yrd Mat Min Mat Min Exi Min Mat Fac Fac Low Low Dat Pro Fac Upp Upp Robot Analysis Total 5 | . 1 . 2 . . . . . 2 . . . . . . . Derelict Logs Recovered 8 | . . 1 . 2 . . . . . 2 2 . . . . 1 Drone Launches 52 | . . . . 23 . 12 . 7 2 . 2 . . 3 3 . Drone Recoveries 44 | . . . . 23 . 11 . 5 1 . 1 . . 2 1 . Exploration | -11 -10 -10 -9 -9 -9 -8 -8 -7 -6 -6 -6 -6 -5 -5 -5 -5 ------------- Run | Yrd Mat Min Mat Min Exi Min Mat Fac Fac Low Low Dat Pro Fac Upp Upp Turns Passed 19051 | 111 1803 341 3439 592 786 335 2123 1853 2573 448 616 104 1008 2080 484 355 Spaces Moved 10310 | 71 896 150 1621 319 402 125 863 1064 1552 317 403 92 737 1056 255 387 Core 323 | 1 . . . . . . . . . . . . . . . 322 Treads 2239 | . 431 150 173 36 124 125 5 70 22 . . . . 790 255 58 Legs 429 | . 427 . . . . . . . . . 2 . . . . . Wheels 7319 | 70 38 . 1448 283 278 . 858 994 1530 317 401 92 737 266 . 7 Hover . | . . . . . . . . . . . . . . . . . Flight . | . . . . . . . . . . . . . . . . . Fastest Speed 50 | 50 90 160 140 170 170 240 135 108 111 130 108 108 123 160 160 50 Average Speed 154 | 88 170 203 171 177 191 240 191 140 129 130 124 108 126 170 160 68 Slowest Speed 545 | 90 260 240 240 240 240 240 240 325 545 130 330 123 165 240 160 240 Overloaded Moves . | . . . . . . . . . . . . . . . . . Propulsion Burnouts . | . . . . . . . . . . . . . . . . . Robots Hopped 1 | . . . . . . . . . 1 . . . . . . . Cave-ins Triggered . | . . . . . . . . . . . . . . . . . Exploration Rate (%) 60 | 3 92 24 92 97 70 81 51 33 41 56 69 68 77 33 94 48 Regions Visited 16 Branch Regions 10 Pre-discovered Areas 4 | . . . . . 1 . . . . 2 . 1 . . . . Known Exits Taken 4 | . . . . . . 1 . . 1 . 1 . . 1 . . Unknown Exits Taken 12 | 1 1 1 1 1 1 . 1 1 . 1 . 1 1 . 1 . Scrap Searched 6 | . . . . 2 . 1 . . . . . . 1 . 2 . Spaces Dug 113 | . . . 17 . . . 24 7 34 . . . 7 24 . . Terrain Destroyed 342 | . . . 43 1 . . 28 20 44 . 38 . 20 88 31 29 Melee 93 | . . . 15 . . . 24 7 26 . . . . 21 . . Projectile 64 | . . . 6 1 . . 4 13 15 . 8 . . 9 7 1 AOE 183 | . . . 22 . . . . . 3 . 30 . 20 58 24 26 Terrain Rammed . | . . . . . . . . . . . . . . . . . Walls Destroyed . | . . . . . . . . . . . . . . . . . Machines Disabled . | . . . . . . . . . . . . . . . . . Actions | -11 -10 -10 -9 -9 -9 -8 -8 -7 -6 -6 -6 -6 -5 -5 -5 -5 --------- Run | Yrd Mat Min Mat Min Exi Min Mat Fac Fac Low Low Dat Pro Fac Upp Upp Total 12451 | 99 1061 170 2040 335 417 147 1226 1344 1911 333 474 96 793 1268 293 444 Wait 813 | 1 51 2 162 1 . 9 237 158 123 1 12 . 9 39 . 8 Move 10292 | 70 895 149 1620 318 401 124 862 1063 1549 316 402 91 736 1055 254 387 Hop 1 | . . . . . . . . . 1 . . . . . . . Pick Up 192 | 9 14 5 28 2 4 2 17 18 36 . 9 . 7 34 2 5 Fast Attach 85 | 7 5 1 13 1 . . 8 13 7 . 1 2 3 22 1 1 Attach 63 | . . . 7 . . . 4 5 8 2 12 . 7 5 2 11 Detach 24 | . 3 . 2 . . . . 1 4 . 4 1 2 4 1 2 Swap 143 | 1 12 2 36 2 3 2 10 6 23 4 7 . 8 15 10 2 Drop 220 | 1 16 2 39 5 . 2 22 31 40 . 1 2 7 46 4 2 Fire 443 | 10 65 9 114 6 . 7 35 30 73 10 18 . 10 18 19 19 Melee 167 | . . . 19 . 8 1 31 12 47 . 8 . 4 30 . 7 Ram . | . . . . . . . . . . . . . . . . . Kick . | . . . . . . . . . . . . . . . . . Crush . | . . . . . . . . . . . . . . . . . Escape Stasis 7 | . . . . . . . . 7 . . . . . . . . Rewire 1 | . . . . . 1 . . . . . . . . . . . Trap . | . . . . . . . . . . . . . . . . . Miscellaneous . | . . . . . . . . . . . . . . . . . Route ------- -11/Scrapyard -10/Materials (discovered 6 exits: *Mat x3 / [*Min x2] / [*Sub]) -10/Mines (discovered 2 exits: *Mat x2) -9/Materials (discovered 4 exits: *Mat x3 / *Min) -9/Mines (discovered 3 exits: *Mat x2 / *Exi) -9/Exiles -8/Mines (discovered 2 exits: *Mat x2) -8/Materials (discovered 3 exits: *Fac x2 / Sto) -7/Factory (discovered 3 exits: *Fac x3) -6/Factory (discovered 4 exits: *Fac x2 / *Low x2) -6/Lower Caves -6/Lower Caves (discovered 2 exits: *Fac / *Dat) -6/Data Miner -5/Proximity Caves -5/Factory (discovered 3 exits: [*Fac] / *Upp x2) -5/Upper Caves -5/Upper Caves (discovered 1 exit: [*Fac]) History --------- Turn | Location | Event 6 | -11/Scrapyard | Discovered new exit (range 15) 112 | -11/Scrapyard | Entered Materials 165 | -10/Materials | Central database locked down 313 | -10/Materials | Build established: Mutant 388 | -10/Materials | Discovered new exit (range 12) 557 | -10/Materials | Core integrity fell below 50% 566 | -10/Materials | Discovered new exit (range 8) 659 | -10/Materials | Build established: Scavenger-Mutant 781 | -10/Materials | Discovered new exit (range 14) 1257 | -10/Materials | Discovered new exit (range 16) 1469 | -10/Materials | Discovered new exit (range 16) 1480 | -10/Materials | Build established: Mutant 1718 | -10/Materials | Discovered new exit (range 16) 1915 | -10/Materials | Entered Mines 1931 | -10/Mines | Discovered new exit (range 13) 1964 | -10/Mines | Learned 4 Materials zone layouts 1991 | -10/Mines | Assisted by bots powering up and referring to "LRC-V3" 2024 | -10/Mines | Received a Rocket Launcher from a helpful Derelict 2076 | -10/Mines | Lost 3 allies 2179 | -10/Mines | Discovered new exit (range 7) 2256 | -10/Mines | Entered Materials 2256 | -9/Materials | Evolved 2 slots: Propulsion x1, Utility x1 2559 | -9/Materials | Build established: Scavenger-Mutant 2616 | -9/Materials | Discovered new exit (range 4) 3859 | -9/Materials | Repaired Imp. Heat Sink 3890 | -9/Materials | Repaired Lgt. Treads 4086 | -9/Materials | Discovered new exit (range 13) 4302 | -9/Materials | Central database locked down 4395 | -9/Materials | Core integrity fell below 50% 4803 | -9/Materials | Discovered new exit (range 3) 5391 | -9/Materials | Identified exit to Materials 5674 | -9/Materials | Discovered new exit (range 9) 5695 | -9/Materials | Entered Mines 5702 | -9/Mines | Met a Derelict bent on vengeance 5707 | -9/Mines | Found the Drone Emporium 5716 | -9/Mines | Found Prototype Device 5716 | -9/Mines | Identified Thief Drone Bay 5835 | -9/Mines | Learned 8 Materials zone layouts 5938 | -9/Mines | Build established: Mutant 5945 | -9/Mines | Discovered exit to Materials (range 9) 6027 | -9/Mines | Discovered exit to Materials (range 9) 6138 | -9/Mines | Learned Materials non-interactive machine intel 6278 | -9/Mines | Deemed a non-threat by the Exiles lab entrance 6278 | -9/Mines | Discovered new exit (range 6) 6287 | -9/Mines | Entered Exiles 6333 | -9/Exiles | Met 8R-AWN 6385 | -9/Exiles | Met EX-HEX 6469 | -9/Exiles | Met EX-DEC 6538 | -9/Exiles | Met EX-BIN 6570 | -9/Exiles | Aligned with FarCom system 6572 | -9/Exiles | Given EX-Vault access code 6680 | -9/Exiles | Learned location of Zion (-7) 6764 | -9/Exiles | Opened EX-Vault 6781 | -9/Exiles | Found Deploy-a-Sentry 6784 | -9/Exiles | Found Deploy-a-Sentry 6788 | -9/Exiles | Found Deploy-a-Sentry 6841 | -9/Exiles | Warned to stay clear of 0b10 Research branches 7049 | -9/Exiles | Discovered new exit (range 11) 7073 | -9/Exiles | Left Exiles lab with Deploy-a-Sentry 7073 | -9/Exiles | Entered Mines 7204 | -8/Mines | Discovered exit to Materials (range 32) 7212 | -8/Mines | Discovered exit to Materials (range 44) 7408 | -8/Mines | Entered Materials 7408 | -8/Materials | Evolved 2 slots: Propulsion x1, Weapon x1 7409 | -8/Materials | Identified exit to Storage 7410 | -8/Materials | Loaded intel: 50 non-interactive machine locations 7897 | -8/Materials | Discovered new exit (range 12) 8890 | -8/Materials | Discovered new exit (range 10) 9531 | -8/Materials | Entered Factory 9531 | -7/Factory | Evolved 2 slots: Utility x2 9947 | -7/Factory | DAS Turret deployed 10007 | -7/Factory | Repaired Hrd. Light Armor Plating 10047 | -7/Factory | Repaired Cryofiber Web 10515 | -7/Factory | Garrison activated, responded to threat 10520 | -7/Factory | Discovered new exit (range 15) 11004 | -7/Factory | Discovered new exit (range 12) 11026 | -7/Factory | Fabricated S-27 Virus? 11131 | -7/Factory | Cargo convoy interrupted 11255 | -7/Factory | Discovered new exit (range 8) 11384 | -7/Factory | Entered another Factory area 11384 | -6/Factory | Evolved 2 slots: Propulsion x1, Utility x1 11499 | -6/Factory | DAS Turret deployed 11640 | -6/Factory | Build established: Skirmisher 12315 | -6/Factory | DAS Turret deployed 12441 | -6/Factory | Discovered new exit (range 81) 12661 | -6/Factory | Build established: Mutant 12889 | -6/Factory | Discovered new exit (range 5) 13797 | -6/Factory | Found Exp. Targeting Computer 13889 | -6/Factory | Identified exit to Lower Caves 13957 | -6/Factory | Entered Lower Caves 14259 | -6/Lower Caves | Discovered new exit (range 13) 14348 | -6/Lower Caves | Learned location of Extension (-4) 14405 | -6/Lower Caves | Entered another Lower Caves area 14443 | -6/Lower Caves | Ambushed by wild Derelicts 14517 | -6/Lower Caves | Discovered new exit (range 15) 14567 | -6/Lower Caves | Lost 5 parts (1p2n2u) 14638 | -6/Lower Caves | Learned Factory security intel 14688 | -6/Lower Caves | Spotted B-75 Beast 14867 | -6/Lower Caves | Attracted the attention of an 0b10 checkpoint 14983 | -6/Lower Caves | Identified exit to Data Miner 15021 | -6/Lower Caves | Entered Data Miner 15023 | -6/Data Miner | Discovered new exit (range 6) 15044 | -6/Data Miner | Met Data Miner 15063 | -6/Data Miner | Learned location of Section 7 (-2) 15063 | -6/Data Miner | Acquired the access code to Warlord's prototype stash 15082 | -6/Data Miner | Received God Mode back door access code from Data Miner 15125 | -6/Data Miner | Entered Proximity Caves 15126 | -5/Proximity Caves | System corruption reached 10% 15436 | -5/Proximity Caves | Spotted B-75 Beast 15937 | -5/Proximity Caves | Attracted the attention of an 0b10 base 15994 | -5/Proximity Caves | Destroyed 9 combat bots 16021 | -5/Proximity Caves | Lost 4 parts (1n2u1w) 16124 | -5/Proximity Caves | Discovered new exit (range 7) 16133 | -5/Proximity Caves | Entered Factory 16133 | -5/Factory | Evolved 2 slots: Power x1, Propulsion x1 16412 | -5/Factory | Discovered new exit (range 16) 16463 | -5/Factory | Identified exit to Upper Caves 16891 | -5/Factory | Repaired Imp. Medium Treads 17229 | -5/Factory | Build established: Scavenger-Mutant 17420 | -5/Factory | Repaired Imp. Heavy Armor Plating 17860 | -5/Factory | Build established: Mutant 18134 | -5/Factory | Spotted B-75 Beast 18213 | -5/Factory | Entered Upper Caves 18419 | -5/Upper Caves | Destroyed 7 combat bots 18558 | -5/Upper Caves | Discovered new exit (range 73) 18678 | -5/Upper Caves | Encountered a Warlord checkpoint 18697 | -5/Upper Caves | Entered another Upper Caves area 18699 | -5/Upper Caves | Attracted the attention of an 0b10 checkpoint 18729 | -5/Upper Caves | Discovered new exit (range 8) 18802 | -5/Upper Caves | Released all parts (7) 18830 | -5/Upper Caves | Lost 10 parts (2p5n1u2w) 18893 | -5/Upper Caves | Core integrity fell below 50% 18979 | -5/Upper Caves | Released all parts (5) 19010 | -5/Upper Caves | Lost 3 parts (3n) 19038 | -5/Upper Caves | Core integrity fell below 20% 19052 | -5/Upper Caves | Destroyed by S-27 Virus with Autogun Last Messages --------------- 18962_ Acquired 94 matter. 18962_ Penetrated by Slug. 18968_ Acquired 15 matter. 18968_ Acquired 3 matter. 18968_ Slug penetrates Wall. 18969_ Penetrated by Slug. 18969_ Com. Wheel destroyed. 18976_ Slug penetrates Wall. 18976_ Med. Treads destroyed. 18977_ Critical hit (Burn: +37). 18979_ Med. Treads destroyed. 18979_ Released Imp. Sensor Array. 18979_ Released Imp. Signal Interpreter. 18979_ Released Cold Fusion Reactor. 18979_ Released Lrn. Tractor Beam. 18979_ Released Hyp. Coil Gun. 18979_ Acquired Hyp. Coil Gun. 18991_ Acquired derelict log, extracted data. Data stored: Armory entrances (x1). 19022_ Acquired 70 matter. Map ----- +----------------------------------------------------+ | | | | | | | ?????????????????????????????????????????????????? | | ?????????????????????????????????????????????????? | | ?????????????????????????????????????????????????? | | ?????????????????????????????????????????????????? | | ?????????????????????????????????????????????????? | | ?????????????????????????????????????????????????? | | ?????????????????????????????????????????????????? | | ?????????????????????????????????????????????????? | | ?????????????????????????????????????????????????? | | ?????????????????????????????????????????????????? | | ?????????????????????????????????????????????????? | | ?????????????????????????????????????????????????? | | ?????????????????????????????????????????????????? | | ?????????????????????????????????????????????????? | | ??????????????????????????????#####??????????????? | | ?????????????????????####????## ##?????????????? | | ????????????????????## ###?# ##????????????? | | ????????????????????# ### #????????????? | | ????????????????????# ## ######???????? | | ????????????????????# #?####### | | ????????????????????# s ### # | | ???????????????????# ## #### ##### ## | | ???????????????? ????#@ #??# | | ??????????????# ????????# #### # | | ????????????????????????# # #### | | ????????????????????????# ## #####??## | | ????????????????????????# #####???????### | | ????????????????????????# #?????????????### # | | ????????????????????????# #???????????????## ### | | ????????????????????????# #????????????????####?? | | ????????????????????????# #?????????????????????? | | ???????????????????????? ?????????????????????# | | ???????????????????????? ????????????????????# | | ???????????????????????? s????????????????????# | | ????????????????????????## ??????????????????? | | ??????????????????????????##?????????????????? | | ????????????????????????????????????????????? " "" | | ??????????????????????????????????????????????"" ? | | ?????????????????????????????????????????????????? | | ?????????????????????????????????????????????????? | | ?????????????????????????????????????????????????? | | ?????????????????????????????????????????????????? | | ?????????????????????????????????????????????????? | | ?????????????????????????????????????????????????? | | ?????????????????????????????????????????????????? | | ?????????????????????????????????????????????????? | | ?????????????????????????????????????????????????? | +----------------------------------------------------+ Best States ------------- Heat Dissipation 71 Energy Generation 37 Energy Capacity 300 Matter Stores 300 Matter Capacity 300 Sight Range 22 Robot Scan Range 16 Terrain Scan Range 16 Terrain Scan Density 210 Additional Mass Support 9 Armor Coverage 750 Resistance: KI 20 Resistance: TH 20 Resistance: EX 50 Resistance: EM 25 Propulsion Shielding 66 Weapon Cycling 15 Evasion (%) 55 Targeting Accuracy 12 Core Analysis 6 Recoil Reduction 6 Offensive Hacking 10 Item Schematics ----------------- Imp. Flight Unit | -9/Materials | Scanalyzed Rocket Launcher | -9/Materials | Scanalyzed Hacking Suite | -8/Materials | Scanalyzed Arm. Wheel | -8/Materials | Scanalyzed Imp. VTOL Module | -8/Materials | Scanalyzed Combat Drone Bay | -6/Data Miner | Free Lgt. Regenerative Plating | -6/Data Miner | Free Enh. Armored Leg | -6/Data Miner | Free Prc. Energy Filter | -6/Data Miner | Free Enh. Coil Gun | -6/Data Miner | Free Field Propulsion Array | -6/Data Miner | Free Lrn. Terrain Scanner | -6/Data Miner | Free Force Lance | -6/Data Miner | Free Variable Charge Gun | -6/Data Miner | Free Robot Schematics ------------------ B-60 Warrior | -6/Data Miner | Free Y-54 Guardian | -6/Data Miner | Free I-47 Archangel | -6/Data Miner | Free X-67 Chaingunner | -6/Data Miner | Free G-50 Soldier | -6/Data Miner | Free Fabricated ------------ S-27 Virus | x4 | -7/Factory | Preloaded Alien Tech Used ----------------- None Achievements -------------- My Command Is Your Wish Challenges ------------ None Game ------ Seed IntegratedSurveybotThruster Manual? 0 Play Time 04:39:27 Cumulative 90.7 hours Start 2024.06.29 @ 19:36:34 End 2024.07.03 @ 21:06:58 Sessions 8 Manual Loads 0 Difficulty Rogue Special Mode None Game No. 52 Rogue 49 Adventurer 3 Explorer 0 Win Type - Total 2 Types 2/0/0/0/0/0/0/0/0 Lore% 49 Gallery% 51 Achievement% 43 Wizard Run 0 Options --------- Layout 1 ASCII 0 Keyboard 1 Movement Vi Keybinds 1 Fullscreen 2 Font 24/Smallcaps Map View 50x35 Zoom Use 0% Tactical HUD 1 Map Filters NONE Filters NONE Steam 1 RUN: e8bf2ebb-5db7-401a-ad6e-e9e481e6e913